Cogmind - Beta 10.1 *** ADVENTURER MODE // 2020.10.11 @ 02:16:13 Player: brunoqc Result: Self-destructed Performance ------------- Evolutions (3) 1500 Regions Visited (6) 1200 Robots Destroyed (37) 185 Value Destroyed (1241) 1241 Prototype IDs (3) 60 Alien Tech Used (0) 0 Bonus (451) 451 TOTAL SCORE: 4637 Bonus ------- Follower Combat Kills 151 Aligned with FarCom 300 Cogmind --------- Core Integrity 272/700 Matter 0/300 Energy 100/100 System Corruption 5% Temperature Cool (0) Movement Rolling (80) Location -7/Factory Parts ------- > --- POWER (2) -------- (None) > --- PROPULSION (2) --- Wheel > --- UTILITY (5) ------ Medium Storage Unit > --- WEAPON (4) ------- Mini Grenade Launcher > --- INVENTORY (8) ---- (None) Peak State ------------ > --- POWER ------------ Micro Nuclear Core Micro Nuclear Core > --- PROPULSION ------- Armored Treads Armored Treads > --- UTILITY ---------- Heat Sink Medium Storage Unit Advanced Terrain Scanner Advanced Transmission Jammer Shield Generator > --- WEAPON ----------- Heavy Assault Rifle Minigun High-powered Shotgun Heavy Missile Launcher > --- INVENTORY -------- Relay Coupler [NC] Gatling Laser Gauss Cannon Mini Grenade Launcher [Rating: 41] Favorites ----------- Power Micro Nuclear Core Engine Light Ion Engine Power Core Micro Nuclear Core Propulsion Wheel Treads Armored Treads Wheel Wheel Utility Heat Sink Device Heat Sink Storage Medium Storage Unit Hackware System Shield Protection Light Armor Plating Weapon Heavy Assault Rifle Energy Gun Medium Laser Ballistic Gun Heavy Assault Rifle Ballistic Cannon Gauss Cannon Launcher Heavy Missile Launcher Special Weapon Field Lobotomy Kit Piercing Weapon Spear Build | -11 -10 -10 -10 -9 -8 -7 ------- Run | Scr Mat Min Exi Min Mat Fac Slots Evolved 6 | . . . . . 4 2 Power 1 | . . . . . . 1 Propulsion . | . . . . . . . Utility 3 | . . . . . 2 1 Weapon 2 | . . . . . 2 . Parts Attached 40 | 6 1 . 2 1 11 19 Power 7 | 1 . . 1 . 1 4 Engine 4 | 1 . . 1 . 1 1 Core 3 | . . . . . . 3 Reactor . | . . . . . . . Propulsion 5 | 2 . . . . . 3 Treads 2 | . . . . . . 2 Leg . | . . . . . . . Wheel 3 | 2 . . . . . 1 Hover . | . . . . . . . Flight . | . . . . . . . Utility 13 | 1 1 . . 1 5 5 Device 8 | 1 1 . . . 3 3 Storage 1 | . . . . . . 1 Processor . | . . . . . . . Hackware 2 | . . . . . 1 1 Protection 2 | . . . . 1 1 . Artifact . | . . . . . . . Weapon 15 | 2 . . 1 . 5 7 Energy Gun 3 | 2 . . . . . 1 Energy Cannon . | . . . . . . . Ballistic Gun 5 | . . . . . 4 1 Ballistic Cannon 1 | . . . . . . 1 Launcher 4 | . . . . . 1 3 Special Weapon 1 | . . . 1 . . . Impact Weapon . | . . . . . . . Slashing Weapon . | . . . . . . . Piercing Weapon 1 | . . . . . . 1 Special Melee Weapon . | . . . . . . . Unidentified Prototypes 1 | . . . 1 . . . Parts Lost 18 | . . . . . 1 17 Power 3 | . . . . . . 3 Propulsion 2 | . . . . . . 2 Utility 6 | . . . . . . 6 Weapon 7 | . . . . . 1 6 Highest Loss Streak 5 | . . . . . 1 5 Average Slot Usage (%) 91 | . 97 100 99 100 89 89 Engine 7 | . 14 14 13 14 9 4 Core 3 | . . . . . . 5 Treads 6 | . . . . . . 10 Wheel 11 | . 28 28 28 28 18 3 Device 22 | . 25 28 28 14 27 20 Storage 4 | . . . . . . 6 Hackware 1 | . . . . . . 2 Protection 3 | . . . . 14 7 3 Energy Gun 6 | . 28 28 25 14 6 . Ballistic Gun 14 | . . . . . 5 23 Launcher 3 | . . . . . 8 3 Special Weapon 1 | . . . 2 14 6 . Naked Turns . | . . . . . . . Heaviest Build 44 | 8 9 9 15 17 25 44 Greatest Support 40 | 20 20 20 20 20 20 40 Greatest Overweight (x) 11 | . . . . . 1 11 Average Overweight (x) . | . . . . . . . Largest Inventory Capacity 8 | 4 4 4 4 4 4 8 Average Capacity 6 | 4 4 4 4 4 4 7 Most Carried 4 | . . 1 3 3 2 4 Average Carried 1 | . . . 1 1 . 2 Final Capacity 8 | 4 4 4 4 4 4 8 Final Carried 2 | . . 1 2 1 1 . Class Distribution -------------------- 38% | Mutant 32% | Skirmisher 21% | Hacker-Skirmisher 6% | Tank Dominant Class ---------------- Mutant | -10/Materials Mutant | -10/Mines Mutant | -10/Exiles Mutant | -9/Mines Mutant | -8/Materials Skirmisher | -7/Factory Resources | -11 -10 -10 -10 -9 -8 -7 ----------- Run | Scr Mat Min Exi Min Mat Fac Matter Collected 998 | 260 10 . . 27 260 441 Remotely 290 | . 10 . . 20 260 . Salvage Created 1018 | 30 18 15 . . 203 752 Parts 57 | 2 1 . . . 12 42 Haulers Intercepted 2 | . . . . . 1 1 Recyclers Shooed 2 | . . 1 . . . 1 Parts Field Recycled . | . . . . . . . Retrieved Matter . | . . . . . . . Parts Self-Destructed . | . . . . . . . Prevented . | . . . . . . . Kills | -11 -10 -10 -10 -9 -8 -7 ------- Run | Scr Mat Min Exi Min Mat Fac Combat Hostiles Destroyed 24 | 1 1 1 . . 4 17 Guns 11 | 1 1 1 . . 2 6 Cannons 3 | . . . . . . 3 AOE 10 | . . . . . 2 8 Classes Destroyed 10 | 1 1 . . . 5 3 Worker 3 | . . . . . 1 2 Builder 5 | . . . . . 1 4 Hauler 2 | . . . . . 1 1 Recycler 1 | . . . . . . 1 Watcher 2 | . . . . . . 2 Swarmer 2 | . 1 1 . . . . Grunt 11 | 1 . . . . 1 9 Duelist 1 | . . . . . 1 . Sentry 5 | . . . . . 2 3 Programmer 5 | . . . . . . 5 Best Kill Streak 6 | 1 1 1 . . 5 6 Combat Bots Only 5 | 1 1 1 . . 3 5 Max Kills in Single Turn 2 | 1 1 1 . . 2 2 Gunslinging . | . . . . . . . Exploded 1 | . . . . . 1 1 Melee . | . . . . . . . Uniques/NPCs Destroyed . | . . . . . . . Combat | -11 -10 -10 -10 -9 -8 -7 -------- Run | Scr Mat Min Exi Min Mat Fac Damage Taken 2669 | 8 14 37 . 21 310 2279 Core 479 | . 7 16 . . 28 428 Absorbed by Shields 152 | . . . . . . 152 Core Remaining (%) 94 | 100 . . . 90 94 . Volleys Fired 83 | 3 2 1 . . 22 55 Largest 4 | 2 2 2 . . 4 4 Hottest 158 | 100 100 100 . . 98 158 Shots Fired 197 | 6 4 2 . . 45 140 Gun 129 | 6 4 2 . . 28 89 Cannon 19 | . . . . . . 19 Launcher 44 | . . . . . 12 32 Special 5 | . . . . . 5 . Kinetic 117 | . . . . . 15 102 Thermal 31 | 6 4 2 . . 13 6 Explosive 44 | . . . . . 12 32 Electromagnetic . | . . . . . . . Robot Hit Streak 35 | 6 2 4 . . 35 14 Robot Miss Streak 3 | . 2 . . . 3 2 Penetration Max . | . . . . . . . Secondary Targets . | . . . . . . . Shots Hit Robots 152 | 6 2 2 . . 40 102 Core Hits 95 | 2 1 1 . . 17 74 Critical Hits 3 | . . . . . . 3 Critical Kills 1 | . . . . . . 1 Critical Parts Destroyed 2 | . . . . . . 2 Melee Attacks . | . . . . . . . Impact . | . . . . . . . Slashing . | . . . . . . . Piercing . | . . . . . . . Sneak Attacks . | . . . . . . . Combat Hostiles . | . . . . . . . Follow-up Attacks . | . . . . . . . Damage Inflicted 4347 | 75 25 28 . 30 611 3578 Guns 1298 | 75 25 25 . . 263 910 Cannons 385 | . . . . . . 385 Explosions 2550 | . . . . . 340 2210 Melee . | . . . . . . . Ramming 114 | . . 3 . 30 8 73 Kinetic 1285 | . . . . . 98 1187 Thermal 398 | 75 25 25 . . 165 108 Explosive 2550 | . . . . . 340 2210 Electromagnetic . | . . . . . . . Impact . | . . . . . . . Slashing . | . . . . . . . Piercing . | . . . . . . . Highest Corruption 5 | . . . . . . 5 Average Corruption 2 | . . . . . . 2 Corruption Purged . | . . . . . . . Effects 14 | . . . . . . 14 Message Errors 3 | . . . . . . 3 Heat Flow Errors 2 | . . . . . . 2 Energy Discharges 3 | . . . . . . 3 Parts Rejected 1 | . . . . . . 1 Data Loss (minor) 2 | . . . . . . 2 Targeting Errors 3 | . . . . . . 3 Overload Shots . | . . . . . . . Overflow Damage 166 | . . . . . . 166 Projectiles 19 | . . . . . . 19 Explosions 147 | . . . . . . 147 Melee . | . . . . . . . Knockbacks 4 | . . . . . . 4 Impact . | . . . . . . . Kinetic 4 | . . . . . . 4 Secondary . | . . . . . . . Self-Inflicted Damage 109 | . . 1 . 15 4 89 Shots 6 | . . . . . . 6 Rammed 40 | . . 1 . 2 2 35 Targets Rammed 40 | . . 1 . 2 2 35 Kicked . | . . . . . . . Crushed . | . . . . . . . Highest Temperature 270 | 123 27 9 . . 9 270 Average Temperature 47 | 67 16 6 . . 4 51 Received Heat Transfer 994 | 6 18 . . . 117 853 Siege Activations . | . . . . . . . Robots Corrupted . | . . . . . . . Combat Hostiles . | . . . . . . . Parts Fried . | . . . . . . . Impact Corruptions . | . . . . . . . Robots Melted . | . . . . . . . Combat Hostiles . | . . . . . . . Parts Melted 1 | . . 1 . . . . Heat Transferred 1076 | 222 74 74 . . 481 225 Parts Sabotaged . | . . . . . . . Parts Stolen . | . . . . . . . Parts Stripped . | . . . . . . . Power Chain Reactions . | . . . . . . . Missiles Intercepted . | . . . . . . . Alert | -11 -10 -10 -10 -9 -8 -7 ------- Run | Scr Mat Min Exi Min Mat Fac Peak Influence 246 | 20 55 38 . . 230 246 Initial 38 | . 11 18 . . . 38 Average 55 | 3 30 30 . . 69 59 Maximum Alert Level 1 | . . . . . 1 1 Low Security (%) 96 | 100 100 100 . 100 83 99 Level 1 3 | . . . . . 16 . Level 2 . | . . . . . . . Level 3 . | . . . . . . . Level 4 . | . . . . . . . Level 5 . | . . . . . . . High Security . | . . . . . . . Max Security . | . . . . . . . Squads Dispatched 13 | . 2 . . . 3 8 Investigation 7 | . 2 . . . 3 2 Extermination 4 | . . . . . . 4 Reinforcement 2 | . . . . . . 2 Assault . | . . . . . . . Garrison . | . . . . . . . Intercept . | . . . . . . . Construction Impeded 2 | . . . . . . 2 Haulers Reinforced . | . . . . . . . Stealth | -11 -10 -10 -10 -9 -8 -7 --------- Run | Scr Mat Min Exi Min Mat Fac Distress Signals 3 | . 2 . . . . 1 Communications Jammed 1 | . . . . . . 1 Distress Signals 1 | . . . . . . 1 Times Spotted 48 | 1 1 6 . 3 11 26 Peak Tracking Total 5 | 1 1 3 . 4 3 5 Tactical Retreats 1 | . . . . . . 1 Traps | -11 -10 -10 -10 -9 -8 -7 ------- Run | Scr Mat Min Exi Min Mat Fac Traps Triggered 2 | . . . . . 1 1 Indirectly . | . . . . . . . Trap Hack Attempts . | . . . . . . . Triggered . | . . . . . . . Disarmed . | . . . . . . . Reprogrammed . | . . . . . . . Reused . | . . . . . . . Traps Extracted . | . . . . . . . Installed . | . . . . . . . Triggered . | . . . . . . . Machines | -11 -10 -10 -10 -9 -8 -7 ---------- Run | Scr Mat Min Exi Min Mat Fac Machines Disabled 2 | . . . . . 1 1 Max in Single Turn 1 | . . . . . 1 1 Machines Sabotaged . | . . . . . . . Garrisons Compromised . | . . . . . . . Overloaded Fab Kills . | . . . . . . . Fab Network Shutdowns . | . . . . . . . Hacking | -11 -10 -10 -10 -9 -8 -7 --------- Run | Scr Mat Min Exi Min Mat Fac Machines Accessed 23 | . 1 . 4 . 7 11 Terminals 11 | . 1 . . . 6 4 Fabricators 2 | . . . . . . 2 Repair Stations 2 | . . . . . 1 1 Recycling Units 3 | . . . . . . 3 Scanalyzers 1 | . . . . . . 1 Garrison Access . | . . . . . . . Total Hacks 99 | . 3 . 49 . 21 26 Successful 82 | . 2 . 49 . 15 16 Failed 17 | . 1 . . . 6 10 Catastrophic 2 | . 1 . . . . 1 Database Lockouts . | . . . . . . . Manual 2 | . . . 2 . . . Terminals 29 | . 3 . . . 18 8 Fabricators 2 | . . . . . . 2 Repair Stations 7 | . . . . . 3 4 Recycling Units 10 | . . . . . . 10 Scanalyzers 2 | . . . . . . 2 Garrison Access . | . . . . . . . Terminal Hacks 68 | . 2 . 49 . 13 4 Record 59 | . 2 . 49 . 7 1 Prototype ID Bank 1 | . . . . . 1 . Emergency Access Points 1 | . . . . . 1 . Terminal Index 1 | . . . . . 1 . Unreport Threat 1 | . . . . . 1 . Locate Traps 4 | . . . . . 1 3 Recall Investigation 1 | . . . . . 1 . Fabricator Hacks 1 | . . . . . . 1 Build 1 | . . . . . . 1 Repair Station Hacks 4 | . . . . . 2 2 Scan Component 2 | . . . . . 1 1 Repair 2 | . . . . . 1 1 Recycling Unit Hacks 9 | . . . . . . 9 Recycle Component 2 | . . . . . . 2 Process 3 | . . . . . . 3 Report Inventory 2 | . . . . . . 2 Retrieve Matter 1 | . . . . . . 1 Retrieve Components 1 | . . . . . . 1 Scanalyzer . | . . . . . . . Garrison Access Hacks . | . . . . . . . Unauthorized Hacks . | . . . . . . . Terminals . | . . . . . . . Fabricators . | . . . . . . . Repair Stations . | . . . . . . . Recycling Units . | . . . . . . . Scanalyzers . | . . . . . . . Garrison Access . | . . . . . . . Data Cores Recovered . | . . . . . . . Used . | . . . . . . . Hacking Detections 14 | . 1 . . . 6 7 Full Trace Events 6 | . 1 . . . 3 2 Feedback Events . | . . . . . . . Feedback Blocked . | . . . . . . . Robot Schematics Acquired . | . . . . . . . Robots Built . | . . . . . . . Matter . | . . . . . . . Time . | . . . . . . . Total Robot Build Rating . | . . . . . . . Part Schematics Acquired . | . . . . . . . Parts Built 1 | . . . . . . 1 Matter 234 | . . . . . . 234 Time 117 | . . . . . . 117 Total Part Build Rating 7 | . . . . . . 7 Parts Repaired 2 | . . . . . 1 1 Time 51 | . . . . . 13 38 Parts Recycled 2 | . . . . . . 2 Recycled Matter 54 | . . . . . . 54 Retrieved Matter 17 | . . . . . . 17 Retrieved Components . | . . . . . . . Parts Scanalyzed . | . . . . . . . Part Schematics Acquired . | . . . . . . . Parts Damaged . | . . . . . . . Bothacking | -11 -10 -10 -10 -9 -8 -7 ------------ Run | Scr Mat Min Exi Min Mat Fac Used RIF Installer . | . . . . . . . Robots Hacked . | . . . . . . . Non-combat . | . . . . . . . Combat . | . . . . . . . Robot Hacks Applied . | . . . . . . . Relay Couplers Released 4 | . . . . . . 4 Programmers 4 | . . . . . . 4 Robots Rewired . | . . . . . . . Allies Hacked . | . . . . . . . Hacks Repelled . | . . . . . . . Allies | -11 -10 -10 -10 -9 -8 -7 -------- Run | Scr Mat Min Exi Min Mat Fac Total Allies 4 | . . . . . 4 . Largest Group 2 | . . . . . 2 2 Highest-Rated Group 30 | . . . . . 30 30 Highest-Rated Ally 16 | . . . . . 16 15 Total Orders . | . . . . . . . Ally Attacks 26 | . . . . . 20 6 Total Damage 439 | . . . . . 309 130 Kills 6 | . . . . . 4 2 Allies Corrupted . | . . . . . . . Allies Melted . | . . . . . . . Field Lobotomies 4 | . . . . . 4 . Intel | -11 -10 -10 -10 -9 -8 -7 ------- Run | Scr Mat Min Exi Min Mat Fac Robot Analysis Total . | . . . . . . . Derelict Logs Recovered 1 | . . 1 . . . . Drone Launches . | . . . . . . . Drone Recoveries . | . . . . . . . Exploration | -11 -10 -10 -10 -9 -8 -7 ------------- Run | Scr Mat Min Exi Min Mat Fac Turns Passed 3900 | 57 148 107 479 196 620 2293 Spaces Moved 2872 | 55 150 78 592 236 498 1263 Core 41 | 15 . . . . . 26 Treads 685 | . . . . . . 685 Legs . | . . . . . . . Wheels 2146 | 40 150 78 592 236 498 552 Hover . | . . . . . . . Flight . | . . . . . . . Fastest Speed 50 | 50 80 80 80 80 80 80 Average Speed 107 | 71 80 80 80 80 88 140 Slowest Speed 600 | 80 80 80 80 80 90 600 Overloaded Moves . | . . . . . . . Propulsion Burnouts . | . . . . . . . Robots Hopped . | . . . . . . . Cave-ins Triggered 1 | . . . . . . 1 Exploration Rate (%) 39 | 7 20 31 93 61 40 24 Regions Visited 6 Branch Regions 3 Pre-discovered Areas 1 | . . . 1 . . . Known Exits Taken . | . . . . . . . Unknown Exits Taken 6 | 1 1 1 1 1 1 . Scrap Searched 4 | . . 1 . 3 . . Spaces Dug . | . . . . . . . Terrain Destroyed 292 | . . . . . 97 195 Melee . | . . . . . . . Projectile 1 | . . . . . . 1 AOE 291 | . . . . . 97 194 Terrain Rammed . | . . . . . . . Walls Destroyed . | . . . . . . . Machines Disabled . | . . . . . . . Actions | -11 -10 -10 -10 -9 -8 -7 --------- Run | Scr Mat Min Exi Min Mat Fac Total 3487 | 63 173 120 598 243 634 1656 Wait 425 | . 21 40 . 1 96 267 Move 2866 | 54 149 77 591 235 497 1263 Hop . | . . . . . . . Pick Up 15 | . . 1 2 1 2 9 Fast Attach 28 | 6 1 . 1 1 8 11 Attach 12 | . . . 1 . 3 8 Detach 3 | . . . 1 . 1 1 Swap 1 | . . . . . . 1 Drop 14 | . . . 2 3 3 6 Fire 83 | 3 2 1 . . 22 55 Melee . | . . . . . . . Ram 6 | . . 1 . 2 2 1 Kick . | . . . . . . . Crush 34 | . . . . . . 34 Escape Stasis . | . . . . . . . Rewire . | . . . . . . . Trap . | . . . . . . . Miscellaneous . | . . . . . . . Route ------- -11/Scrapyard -10/Materials -10/Mines -10/Exiles (discovered 2 exits: [*Min x2]) -9/Mines -8/Materials -7/Factory History --------- Turn | Location | Event 2 | -11/Scrapyard | Met Revision 17 38 | -11/Scrapyard | Discovered new exit (range 8) 58 | -11/Scrapyard | Entered Materials 107 | -10/Materials | Discovered new exit (range 15) 157 | -10/Materials | Met 8R-AWN 206 | -10/Materials | Entered Mines 207 | -10/Mines | Followed 8R-AWN into the Mines 272 | -10/Mines | Learned Materials security intel 310 | -10/Mines | Discovered new exit (range 5) 313 | -10/Mines | Entered Exiles 316 | -10/Exiles | Build established: Mutant 339 | -10/Exiles | Welcomed by 8R-AWN 357 | -10/Exiles | Met EX-HEX 403 | -10/Exiles | Met EX-DEC 437 | -10/Exiles | Visited The Gauntlet 545 | -10/Exiles | Learned location of Zion (-7) 575 | -10/Exiles | Discovered new exit (range 11) 633 | -10/Exiles | Met EX-BIN 651 | -10/Exiles | Aligned with FarCom system 651 | -10/Exiles | Given EX-Vault access code 703 | -10/Exiles | Opened EX-Vault 707 | -10/Exiles | Found Prototype Special Weapon 713 | -10/Exiles | Identified Field Lobotomy Kit 728 | -10/Exiles | Warned to stay clear of 0b10 Research branches 760 | -10/Exiles | Learned about 8R-AWN's background 782 | -10/Exiles | Discovered new exit (range 14) 792 | -10/Exiles | Left Exiles lab with Field Lobotomy Kit 792 | -10/Exiles | Entered Mines 817 | -9/Mines | Found a hidden stash of uninstalled traps 940 | -9/Mines | Discovered new exit (range 11) 988 | -9/Mines | Entered Materials 988 | -8/Materials | Evolved 4 slots: Utility x2, Weapon x2 1079 | -8/Materials | Assimilated Y-45 Defender with FLK Orb 1283 | -8/Materials | Assimilated G-47 Trooper with FLK Orb 1311 | -8/Materials | Repaired Lgt. Armor Plating 1362 | -8/Materials | Assimilated Y-45 Defender with FLK Orb 1407 | -8/Materials | Assimilated Y-45 Defender with FLK Orb 1536 | -8/Materials | Discovered new exit (range 16) 1608 | -8/Materials | Entered Factory 1608 | -7/Factory | Accompanied by 2 allies 1608 | -7/Factory | Evolved 2 slots: Power x1, Utility x1 1891 | -7/Factory | Build established: Hacker-Skirmisher 1973 | -7/Factory | Fabricated Adv. Transmission Jammer (x1) 2520 | -7/Factory | Repaired Minigun? 3029 | -7/Factory | Build established: Skirmisher 3695 | -7/Factory | Lost 3 parts (3w) 3737 | -7/Factory | Lost 3 parts (1n1u1w) 3791 | -7/Factory | Crushed by falling debris 3844 | -7/Factory | Lost 5 parts (2p1n1u1w) 3884 | -7/Factory | Core integrity fell below 50% 3901 | -7/Factory | Self-destructed Last Messages --------------- Acquired Lgt. Nuclear Core. U-05 Engineer lays Concrete. U-05 Engineer destroyed. U-05 Engineer lays Concrete. K-01 Serf collects debris. U-05 Engineer lays Concrete. Lgt. Nuclear Core destroyed. G-47 Trooper destroyed. Destroyed Particle Gun. U-05 Engineer lays Concrete. The unstable cave ceiling collapses. U-05 Engineer lays Concrete. K-01 Serf collects debris. U-05 Engineer lays Concrete. G-47 Trooper destroyed. U-05 Engineer lays Concrete. K-01 Serf collects debris. U-05 Engineer lays Concrete. Acquired 9 matter. U-05 Engineer lays Concrete. Map ----- +----------------------------------------------------+ | ?????????????????????????????????????????????????? | | #?????????????? ?????????????????????????????????? | | ########?????#? ?????????????????????????????????? | | #???#????"""??????????????????????????????? | | """""" #????#???????? ???????????????????????????? | | ""Y""" #????#? ????????? ???? ???????????????????? | | ##????###??????? ?????????????????????????? | | *** #?#???#???#?#????? ?????????????????????? | | ** #?????????#????? ?????????????????????? | | ** #??#???????????# ?????????????????????? | | #???#???????#??# #????????????????????? | | ##+####################k #????????????????????? | | #? ??????????????????? | | #??????????????#+###?? | | ######????????? #?? | | ### ######### #?? | | " """ # # #?? | | " """ ###### ## # ## # # +?? | | " """ #?? # # # + #?? | | "" [ ##? # #r # # # | | "" ### # # # # # " | | # ## # # #?? | | !# # # + #?? | | # # # # # #?? | | # ### # #?# | | ##### ###### @u # # #?? | | u# # #?? | | ############## u# # #?? | | #?############ ##############?? #?? | | ## ### ####?# g ##### #####??#??? #?? | | ## #?# ""#?#?### # = #?#???? # ? | | ## #?# ""##???## # !=#???? ? + ? | | # ### ""# ? ? + #????????#?? | | # #?# T#? # # ! #???? ???? ? | | # ### ""#?"? # # #????????? " | | # # ! ""#??" # # """ #??????????? | | # # ""# ?"" + + """"" #??????????? | | + # #???" # # """"" #???? ? ???? | | # + #???" # ###########??????? ??? | | # # # ???? ?# #?""""???????????????? | | # # #?? ? ?? # g #?"""""??#???#???????? | | # ################ # """"""????#????????? | | # ^ ^ # """""" #?#???? ????? | | # ^ + #??#?? ?????? | | ## // # ! #???????????? | | ?# // # #???? ??????? | | ?# ^/^ #? #???????????? | | ?###########+### / #####? #???? ??????? | | # # """ #?##???#######???????????? | | ? """"""""" #^ """ ##????????#??????????????? | +----------------------------------------------------+ Best States ------------- Heat Dissipation 44 Energy Generation 25 Energy Capacity 325 Matter Stores 300 Matter Capacity 300 Sight Range 16 Terrain Scan Range 20 Terrain Scan Density 10 Jamming Range 16 Armor Coverage 150 Resistance: KI 20 Resistance: TH 20 Resistance: EX 20 Resistance: EM 20 Resistance: I 20 Resistance: S 20 Resistance: P 20 Evasion (%) 50 Recoil Reduction 2 Offensive Hacking 10 Defensive Hacking 10 Item Schematics ----------------- None Robot Schematics ------------------ None Fabricated ------------ Adv. Transmission Jammer | x1 | -7/Factory | Preloaded Alien Tech Used ----------------- None Achievements -------------- GoHome() Just What I Needed Librarian Loot Pinata Made in Tau Ceti IV No Signal Oops Remodeling Tourist Unlikely Earthworm Use The Force Challenges ------------ None Game ------ Seed DirtyCryofiberShredder Manual? 0 Play Time 01:10:50 Cumulative 3.2 hours Start 2020.10.11 @ 00:56:02 End 2020.10.11 @ 02:16:13 Sessions 1 Manual Loads 0 Difficulty Adventurer Special Mode None Game No. 3 Rogue 0 Adventurer 3 Explorer 0 Win Type - Total 0 Types 0/0/0/0/0/0/0/0/0 Lore% 12 Gallery% 5 Achievement% 8 Wizard Run 0 Options --------- ASCII 0 Keyboard 0 Movement Numpad Keybinds 0 Fullscreen 1 Font 18/SmallcapsGlow Map View 76x50 Tactical HUD 0 Map Filters NONE Filters NONE Steam 1 RUN: e9801938-2a5f-4a06-9047-f5b336ff6f2f